[Event "1000GM Winter IM Norm-2 2024"]
[Site "Sunnyvale/"]
[Date "2024.01.05"]
[Round "5.4"]
[White "Dominguez Aguilar, Guillermo"]
[Black "Atwell, Rose"]
[Result "0-1"]
[ECO "B12"]
[WhiteElo "2319"]
[BlackElo "2104"]
[Annotator "RC"]
[PlyCount "74"]
[EventDate "2023.12.14"]
[EventType "schev"]
[EventCountry "USA"]
[SourceTitle "playchess.com"]
[Source "ChessBase"]
[SourceQuality "1"]
[TimeControl "5400+30"]

1. e4 {[%emt 0:13:38]} c6 {[%emt 0:00:06]} 2. d4 {[%emt 0:00:31]} d5 {[%emt 0:00:05]} 3. e5 {[%emt 0:00:05]} Bf5 {[%emt 0:00:05]} 4. h4 {[%emt 0:00:27]} h5 {[%emt 0:00:40]} 5. Bd3 {[%emt 0:00:12]} Bxd3 {[%emt 0:00:18]} 6. Qxd3 {[%emt 0:00:27]} e6 {[%emt 0:00:08]} 7. Nf3 {[%emt 0:00:14]} Qa5+ {[%emt 0:01:38]} 8. Nbd2 {[%emt 0:00:26]} Qa6 {[%emt 0:06:37]} 9. c4 {[%emt 0:00:22]} Ne7 {[%emt 0:07:18]} 10. a3 {[%emt 0:03:37]} Nf5 {[%emt 0:04:43]} 11. Rb1 {[%emt 0:01:49]} Be7 {[%emt 0:11:06]} 12. b4 {[%emt 0:01:58]} dxc4 {[%emt 0:08:09]} 13. Nxc4 {[%emt 0:01:10]} Nd7 {[%emt 0:01:15]} 14. Qc2 {[%emt 0:01:17]} Nb6 {[%emt 0:03:30]} 15. Ne3 {[%emt 0:13:46]} Nh6 {[%emt 0:11:06]} 16. Rb3 {[%emt 0:02:32]} Rd8 {[%emt 0:02:57]} 17. Rd3 {[%emt 0:03:48]} Nd5 {[%emt 0:03:07]} 18. Nxd5 {[%emt 0:02:58]} Rxd5 {[%emt 0:00:26]} 19. Bxh6 {[%emt 0:00:29]} gxh6 {[%emt 0:03:38]} 20. O-O {[%emt 0:02:37]} Rg8 {[%emt 0:01:59]} 21. Rb1 {[%emt 0:04:07]} Rg4 {[%emt 0:02:11]} 22. g3 {[%emt 0:00:26]} Kf8 {[%emt 0:03:16]} 23. Rbb3 {[%emt 0:04:51]} Kg7 {[%emt 0:00:53]} 24. Qd1 {[%emt 0:00:11]} Qb6 {[%emt 0:01:12]} 25. Rd2 {[%emt 0:00:24]} Qd8 {[%emt 0:05:57]} 26. Kf1 {[%emt 0:01:10]} a5 {[%emt 0:02:09]} 27. bxa5 {[%emt 0:01:24]} Qxa5 {[%emt 0:00:16]} 28. Rbd3 {[%emt 0:00:37]} Qa6 {[%emt 0:03:08]} 29. Kg2 {[%emt 0:00:58]} c5 {[%emt 0:01:34]} 30. dxc5 {[%emt 0:01:07]} Rxd3 {[%emt 0:00:08]} 31. Rxd3 {[%emt 0:00:01]} Bxc5 {[%emt 0:00:12]} 32. Nh2 {[%emt 0:05:58]} Re4 {[%emt 0:01:52]} 33. f4 {[%emt 0:10:15]} Re1 {[%emt 0:02:27]} 34. Qd2 {[%emt 0:05:37]} Qc6+ {[%emt 0:01:05]} 35. Nf3 {[%emt 0:00:45]} Rg1+ {[%emt 0:00:32]} 36. Kh3 {[%emt 0:00:38]} Rf1 {[%emt 0:00:44]} 37. Qc3 {[%emt 0:02:32]} Qe4 {[%emt 0:00:44]} 0-1

[Event "1000GM Winter IM Norm-2 2024"]
[Site "Sunnyvale/"]
[Date "2024.01.05"]
[Round "5.5"]
[White "Ramirez, Carlos"]
[Black "Sivakumar, Shaaketh"]
[Result "0-1"]
[ECO "A40"]
[WhiteElo "2190"]
[BlackElo "2364"]
[Annotator "RC"]
[PlyCount "44"]
[EventDate "2023.12.14"]
[EventType "schev"]
[EventCountry "USA"]
[SourceTitle "playchess.com"]
[Source "ChessBase"]
[SourceQuality "1"]
[TimeControl "5400+30"]

1. d4 {[%emt 0:04:12]} e6 {[%emt 0:00:13]} 2. c4 {[%emt 0:00:18]} b6 {[%emt 0:00:17]} 3. e4 {[%emt 0:03:53]} Bb7 {[%emt 0:00:12]} 4. Qc2 {[%emt 0:01:40]} Qh4 {[%emt 0:09:03]} 5. Nc3 {[%emt 0:07:53]} Bb4 {[%emt 0:00:20]} 6. Bd3 {[%emt 0:00:12]} f5 {[%emt 0:00:49]} 7. g3 {[%emt 0:04:26]} Qh5 {[%emt 0:00:13]} 8. f3 {[%emt 0:00:00]} Nc6 {[%emt 0:01:56]} 9. Be3 {[%emt 0:00:38]} fxe4 {[%emt 0:00:09]} 10. Bxe4 {[%emt 0:04:14]} Nf6 {[%emt 0:02:42]} 11. g4 {[%emt 0:03:46]} Qa5 {[%emt 0:03:46]} 12. Nge2 {[%emt 0:05:24]} Nxe4 {[%emt 0:04:55]} 13. fxe4 {[%emt 0:00:41]} O-O {[%emt 0:01:07]} 14. O-O-O {[%emt 0:01:00]} Rf3 {[%emt 0:01:09]} 15. Qd2 {[%emt 0:05:54]} Raf8 {[%emt 0:06:55]} 16. Kb1 {[%emt 0:02:08]} Ba6 {[%emt 0:05:05]} 17. Rc1 {[%emt 0:04:07]} Bxc4 {[%emt 0:04:20]} 18. h4 {[%emt 0:00:14]} Bxa2+ {[%emt 0:00:07]} 19. Kc2 {[%emt 0:00:13]} Bxc3 {[%emt 0:01:10]} 20. Nxc3 {[%emt 0:00:14]} Nb4+ {[%emt 0:00:05]} 21. Kd1 {[%emt 0:49:53]} Bb3+ 22. Ke1 Qa6 0-1

[Event "1000GM Winter IM Norm-2 2024"]
[Site "Sunnyvale/"]
[Date "2024.01.05"]
[Round "5.6"]
[White "Arenas, David"]
[Black "Yao, Hanchi"]
[Result "1-0"]
[ECO "B50"]
[WhiteElo "2406"]
[BlackElo "1998"]
[Annotator "RC"]
[PlyCount "55"]
[EventDate "2023.12.14"]
[EventType "schev"]
[EventCountry "USA"]
[SourceTitle "playchess.com"]
[Source "ChessBase"]
[SourceQuality "1"]
[TimeControl "5400+30"]

1. e4 {[%emt 0:18:05]} c5 {[%emt 0:00:06]} 2. Nf3 {[%emt 0:00:08]} d6 {[%emt 0:00:07]} 3. c3 {[%emt 0:00:12]} Nf6 {[%emt 0:00:13]} 4. h3 {[%emt 0:00:05]} Nc6 {[%emt 0:00:51]} 5. Bd3 {[%emt 0:00:07]} e6 {[%emt 0:03:12]} 6. Bc2 {[%emt 0:00:15]} Be7 {[%emt 0:03:23]} 7. O-O {[%emt 0:00:23]} O-O {[%emt 0:00:36]} 8. Re1 {[%emt 0:00:10]} Qc7 {[%emt 0:01:28]} 9. d4 {[%emt 0:03:20]} Nd7 {[%emt 0:02:49]} 10. Be3 {[%emt 0:01:53]} b6 {[%emt 0:01:11]} 11. Nbd2 {[%emt 0:01:43]} Bb7 {[%emt 0:00:39]} 12. Rc1 {[%emt 0:02:41]} a6 {[%emt 0:03:14]} 13. Nf1 {[%emt 0:00:23]} b5 {[%emt 0:02:11]} 14. Bb1 {[%emt 0:00:28]} Nb6 {[%emt 0:02:14]} 15. b3 {[%emt 0:01:06]} c4 {[%emt 0:04:01]} 16. b4 {[%emt 0:04:55]} Rfd8 {[%emt 0:09:06]} 17. Ng3 {[%emt 0:00:25]} g6 {[%emt 0:00:47]} 18. Qd2 {[%emt 0:05:51]} f6 {[%emt 0:05:00]} 19. h4 {[%emt 0:04:27]} Kf7 {[%emt 0:00:55]} 20. h5 {[%emt 0:03:47]} e5 {[%emt 0:03:29]} 21. d5 {[%emt 0:00:36]} Nb8 {[%emt 0:01:08]} 22. Bxb6 {[%emt 0:00:07]} Qxb6 {[%emt 0:00:17]} 23. Qh6 {[%emt 0:00:04]} Ke8 {[%emt 0:01:05]} 24. Qxh7 {[%emt 0:00:52]} gxh5 {[%emt 0:00:52]} 25. Nf5 {[%emt 0:00:08]} Rd7 {[%emt 0:01:36]} 26. Ng7+ {[%emt 0:00:35]} Kd8 {[%emt 0:00:16]} 27. Qg8+ {[%emt 0:00:06]} Kc7 {[%emt 0:00:13]} 28. Ne6# {[%emt 0:00:05]} 1-0

[Event "1000GM Winter IM Norm-2 2024"]
[Site "Sunnyvale/"]
[Date "2024.01.05"]
[Round "5.7"]
[White "Mede, Istvan"]
[Black "Bhatta, Rohit"]
[Result "1-0"]
[ECO "D36"]
[WhiteElo "2187"]
[BlackElo "1867"]
[Annotator "RC"]
[PlyCount "61"]
[EventDate "2023.12.14"]
[EventType "schev"]
[EventCountry "USA"]
[SourceTitle "playchess.com"]
[Source "ChessBase"]
[SourceQuality "1"]
[TimeControl "5400+30"]

1. d4 {[%emt 0:03:06]} Nf6 {[%emt 0:00:09]} 2. c4 {[%emt 0:00:18]} e6 {[%emt 0:00:07]} 3. Nc3 {[%emt 0:00:05]} d5 {[%emt 0:00:30]} 4. cxd5 {[%emt 0:00:11]} exd5 {[%emt 0:00:02]} 5. Bg5 {[%emt 0:00:07]} c6 {[%emt 0:00:09]} 6. Qc2 {[%emt 0:00:38]} h6 {[%emt 0:00:15]} 7. Bh4 {[%emt 0:01:17]} g6 {[%emt 0:00:07]} 8. f3 {[%emt 0:06:03]} Bg7 {[%emt 0:07:07]} 9. e3 {[%emt 0:02:43]} Be6 {[%emt 0:09:12]} 10. Bd3 {[%emt 0:02:23]} Na6 {[%emt 0:03:37]} 11. a3 {[%emt 0:00:30]} Nc7 {[%emt 0:01:22]} 12. Nge2 {[%emt 0:01:09]} Bd7 {[%emt 0:07:49]} 13. O-O {[%emt 0:04:19]} O-O {[%emt 0:03:38]} 14. Kh1 {[%emt 0:02:07]} Ne6 {[%emt 0:02:42]} 15. e4 {[%emt 0:06:30]} dxe4 {[%emt 0:09:41]} 16. fxe4 {[%emt 0:00:25]} g5 {[%emt 0:00:42]} 17. Bf2 {[%emt 0:00:59]} Nh5 {[%emt 0:02:41]} 18. Rad1 {[%emt 0:07:46]} Nhf4 {[%emt 0:02:01]} 19. Bc4 {[%emt 0:01:16]} Nxe2 {[%emt 0:06:33]} 20. Nxe2 {[%emt 0:00:29]} Rc8 {[%emt 0:01:04]} 21. Be3 {[%emt 0:07:52]} Qc7 {[%emt 0:14:01]} 22. Ba2 {[%emt 0:10:55]} Rfd8 {[%emt 0:01:50]} 23. e5 {[%emt 0:02:55]} Be8 {[%emt 0:05:31]} 24. Qf5 {[%emt 0:08:10]} Nf8 {[%emt 0:04:03]} 25. Ng3 {[%emt 0:00:59]} Qd7 {[%emt 0:03:21]} 26. Qe4 {[%emt 0:00:24]} Ne6 {[%emt 0:05:06]} 27. Nf5 {[%emt 0:01:17]} Bf8 {[%emt 0:01:42]} 28. Bb1 {[%emt 0:01:54]} f6 {[%emt 0:01:58]} 29. exf6 {[%emt 0:00:33]} Qf7 {[%emt 0:01:48]} 30. Ba2 {[%emt 0:01:33]} Bd7 {[%emt 0:00:32]} 31. Ng7 {[%emt 0:01:37]} 1-0

[Event "1000GM Winter IM Norm-2 2024"]
[Site "Sunnyvale/"]
[Date "2024.01.05"]
[Round "5.8"]
[White "Stevens, Adam B"]
[Black "Stopa, Jacek"]
[Result "1/2-1/2"]
[ECO "A84"]
[WhiteElo "1878"]
[BlackElo "2344"]
[Annotator "RC"]
[PlyCount "48"]
[EventDate "2023.12.14"]
[EventType "schev"]
[EventCountry "USA"]
[SourceTitle "playchess.com"]
[Source "ChessBase"]
[SourceQuality "1"]
[TimeControl "5400+30"]

1. d4 {[%emt 0:00:02]} f5 {[%emt 0:03:31]} 2. Nf3 {[%emt 0:00:07]} Nf6 {[%emt 0:00:15]} 3. c4 {[%emt 0:00:02]} g6 {[%emt 0:00:33]} 4. e3 {[%emt 0:00:12]} Bg7 {[%emt 0:00:27]} 5. Be2 {[%emt 0:00:08]} O-O {[%emt 0:00:29]} 6. O-O {[%emt 0:00:39]} b6 {[%emt 0:00:58]} 7. b4 {[%emt 0:00:38]} a5 {[%emt 0:00:39]} 8. b5 {[%emt 0:00:45]} Bb7 {[%emt 0:00:31]} 9. Bb2 {[%emt 0:00:24]} Ne4 {[%emt 0:01:46]} 10. Nc3 {[%emt 0:02:05]} e6 {[%emt 0:00:12]} 11. Qc2 {[%emt 0:03:16]} d6 {[%emt 0:01:21]} 12. Rad1 {[%emt 0:01:31]} Nd7 {[%emt 0:00:23]} 13. Nd2 {[%emt 0:04:29]} Nxd2 {[%emt 0:04:02]} 14. Qxd2 {[%emt 0:01:38]} Qg5 {[%emt 0:01:02]} 15. d5 {[%emt 0:02:08]} e5 {[%emt 0:01:13]} 16. f4 {[%emt 0:01:41]} Qh6 {[%emt 0:03:05]} 17. Rf3 {[%emt 0:01:51]} Bf6 {[%emt 1:18:33]} 18. e4 {[%emt 0:02:21]} Rae8 {[%emt 0:00:00]} 19. Rdf1 {[%emt 0:10:39]} exf4 {[%emt 0:00:00]} 20. exf5 {[%emt 0:00:48]} g5 {[%emt 0:00:00]} 21. h4 {[%emt 0:10:28]} Nc5 {[%emt 0:00:00]} 22. hxg5 {[%emt 0:04:13]} Qxg5 {[%emt 0:00:00]} 23. Rxf4 {[%emt 0:09:08]} Kh8 {[%emt 0:00:00]} 24. Bd1 {[%emt 0:02:11]} Bc8 {[%emt 0:00:00]} 1/2-1/2

[Event "1000GM Winter IM Norm-2 2024"]
[Site "Sunnyvale/"]
[Date "2024.01.05"]
[Round "5.9"]
[White "Sivakumar, Shaashwath"]
[Black "Calderin Gonzalez, Roberto"]
[Result "1-0"]
[ECO "D33"]
[WhiteElo "2205"]
[BlackElo "2413"]
[Annotator "RC"]
[PlyCount "137"]
[EventDate "2023.12.14"]
[EventType "schev"]
[EventCountry "USA"]
[SourceTitle "playchess.com"]
[Source "ChessBase"]
[SourceQuality "1"]
[TimeControl "5400+30"]

1. d4 {[%emt 0:00:03]} d5 {[%emt 0:00:04]} 2. c4 {[%emt 0:00:08]} e6 {[%emt 0:00:04]} 3. Nf3 {[%emt 0:00:04]} c5 {[%emt 0:00:06]} 4. cxd5 {[%emt 0:00:07]} exd5 {[%emt 0:00:07]} 5. g3 {[%emt 0:00:04]} Nc6 {[%emt 0:00:15]} 6. Nc3 {[%emt 0:00:07]} c4 {[%emt 0:00:08]} 7. Bg2 {[%emt 0:00:07]} Bb4 {[%emt 0:00:01]} 8. O-O {[%emt 0:00:25]} Nge7 {[%emt 0:00:05]} 9. Bd2 {[%emt 0:13:55]} O-O {[%emt 0:03:08]} 10. a3 {[%emt 0:09:22]} Bxc3 {[%emt 0:02:48]} 11. bxc3 {[%emt 0:02:25]} Bf5 {[%emt 0:00:31]} 12. Nh4 {[%emt 0:02:44]} Be6 {[%emt 0:00:38]} 13. Qc2 {[%emt 0:02:00]} Qd7 {[%emt 0:00:13]} 14. f3 {[%emt 0:10:09]} b5 {[%emt 0:07:05]} 15. e4 {[%emt 0:02:08]} a5 {[%emt 0:00:14]} 16. f4 {[%emt 0:14:47]} dxe4 {[%emt 0:03:03]} 17. f5 {[%emt 0:00:40]} Nxf5 {[%emt 0:03:20]} 18. Nxf5 {[%emt 0:00:25]} Bxf5 {[%emt 0:00:07]} 19. Rxf5 {[%emt 0:00:02]} Qxf5 {[%emt 0:02:46]} 20. Bxe4 {[%emt 0:00:18]} Qd7 {[%emt 0:00:10]} 21. Bxh7+ {[%emt 0:01:05]} Kh8 {[%emt 0:00:01]} 22. Bf5 {[%emt 0:09:39]} Qd6 {[%emt 0:08:06]} 23. Qe4 {[%emt 0:02:21]} g6 {[%emt 0:00:24]} 24. Qh4+ {[%emt 0:00:09]} Kg8 {[%emt 0:00:09]} 25. Bg5 {[%emt 0:00:58]} f6 {[%emt 0:02:13]} 26. Bxg6 {[%emt 0:00:08]} Ra7 {[%emt 0:05:16]} 27. Bh6 {[%emt 0:00:08]} f5 {[%emt 0:00:55]} 28. Bxf8 {[%emt 0:00:36]} Qxg6 {[%emt 1:02:33]} 29. Bc5 {[%emt 0:00:47]} Rh7 {[%emt 0:00:00]} 30. Qf4 {[%emt 0:00:14]} Qh5 {[%emt 0:00:00]} 31. h4 {[%emt 0:04:53]} Rg7 {[%emt 0:00:00]} 32. Re1 {[%emt 0:02:52]} Rg4 {[%emt 0:00:00]} 33. Qc7 {[%emt 0:04:48]} f4 {[%emt 0:00:00]} 34. Qxc6 {[%emt 0:00:48]} Rxg3+ {[%emt 0:00:00]} 35. Kf2 {[%emt 0:00:03]} Qxh4 {[%emt 0:00:00]} 36. Qe8+ {[%emt 0:00:05]} Kh7 {[%emt 0:00:00]} 37. Qe7+ {[%emt 0:00:05]} Qxe7 {[%emt 0:00:00]} 38. Rxe7+ {[%emt 0:00:03]} Kg6 {[%emt 0:00:00]} 39. Rb7 {[%emt 0:04:08]} Kf5 {[%emt 0:00:00]} 40. Rxb5 {[%emt 0:00:13]} Ke4 {[%emt 0:00:00]} 41. Bb6 {[%emt 0:01:06]} Rxc3 {[%emt 0:00:00]} 42. Re5+ {[%emt 0:00:04]} Kd3 {[%emt 0:00:00]} 43. d5 {[%emt 0:01:44]} Rb3 {[%emt 0:00:00]} 44. Bc7 {[%emt 0:02:36]} c3 {[%emt 0:00:00]} 45. d6 {[%emt 0:00:13]} c2 {[%emt 0:00:00]} 46. d7 {[%emt 0:00:59]} c1=Q {[%emt 0:00:00]} 47. d8=Q+ {[%emt 0:00:04]} Kc2 {[%emt 0:00:00]} 48. Bxa5 {[%emt 0:04:24]} Rb2 {[%emt 0:00:00]} 49. Bd2 {[%emt 0:04:20]} Qh1 {[%emt 0:00:00]} 50. Qc7+ {[%emt 0:00:58]} Kxd2 {[%emt 0:11:00]} 51. Re2+ {[%emt 0:00:35]} Kd3 {[%emt 0:00:00]} 52. Qd6+ {[%emt 0:01:32]} Kc3 {[%emt 0:00:00]} 53. Qe5+ {[%emt 0:00:27]} Kd3 {[%emt 0:00:00]} 54. Qf5+ {[%emt 0:00:56]} Kc3 {[%emt 0:00:00]} 55. Qc5+ {[%emt 0:00:45]} Kd3 {[%emt 0:00:00]} 56. Qd6+ {[%emt 0:00:03]} Kc3 {[%emt 0:00:00]} 57. Qc7+ {[%emt 0:00:51]} Kd3 {[%emt 0:00:00]} 58. Qd8+ {[%emt 0:00:11]} Kc3 {[%emt 0:00:00]} 59. Qf6+ {[%emt 0:00:04]} Kd3 {[%emt 0:00:00]} 60. Qd8+ {[%emt 0:00:15]} Kc3 {[%emt 0:00:00]} 61. Qc7+ {[%emt 0:00:04]} Kd3 {[%emt 0:00:00]} 62. Qd7+ {[%emt 0:00:08]} Kc3 {[%emt 0:00:00]} 63. Qg7+ {[%emt 0:00:02]} Kd3 {[%emt 0:00:00]} 64. Rxb2 {[%emt 0:00:04]} Qh4+ {[%emt 0:00:00]} 65. Kg1 {[%emt 0:01:49]} Qe1+ {[%emt 0:00:00]} 66. Kh2 {[%emt 0:00:06]} Qh4+ {[%emt 0:00:00]} 67. Kg2 {[%emt 0:00:35]} f3+ {[%emt 0:00:00]} 68. Kxf3 {[%emt 0:01:17]} Qh5+ {[%emt 0:00:00]} 69. Kg2 {[%emt 0:00:08]} 1-0

[Event "1000GM Winter IM Norm-2 2024"]
[Site "Sunnyvale/"]
[Date "2024.01.05"]
[Round "6.1"]
[White "Hajnal, Zoltan"]
[Black "Zhou, Ruoyu"]
[Result "1-0"]
[ECO "C10"]
[WhiteElo "2383"]
[BlackElo "2112"]
[Annotator "RC"]
[PlyCount "117"]
[EventDate "2023.12.14"]
[EventType "schev"]
[EventCountry "USA"]
[SourceTitle "playchess.com"]
[Source "ChessBase"]
[SourceQuality "1"]
[TimeControl "5400+30"]

1. d4 {[%emt 0:00:04]} d5 {[%emt 0:00:10]} 2. Nc3 {[%emt 0:00:19]} e6 {[%emt 0:00:37]} 3. e4 {[%emt 0:00:12]} dxe4 {[%emt 0:00:32]} 4. Nxe4 {[%emt 0:00:06]} Nf6 {[%emt 0:00:12]} 5. Nxf6+ {[%emt 0:00:19]} gxf6 {[%emt 0:01:20]} 6. Nf3 {[%emt 0:02:06]} Be7 {[%emt 0:04:33]} 7. g3 {[%emt 0:02:42]} c5 {[%emt 0:08:42]} 8. Bg2 {[%emt 0:03:27]} Nc6 {[%emt 0:03:02]} 9. Be3 {[%emt 0:04:25]} cxd4 {[%emt 0:05:49]} 10. Nxd4 {[%emt 0:00:22]} Nxd4 {[%emt 0:02:12]} 11. Bxd4 {[%emt 0:00:05]} e5 {[%emt 0:00:17]} 12. Bc3 {[%emt 0:00:27]} Qxd1+ {[%emt 0:03:05]} 13. Rxd1 {[%emt 0:00:13]} Rb8 {[%emt 0:00:50]} 14. O-O {[%emt 0:01:04]} O-O {[%emt 0:20:46]} 15. f4 {[%emt 0:01:27]} exf4 {[%emt 0:01:25]} 16. Rxf4 {[%emt 0:00:27]} Be6 {[%emt 0:02:24]} 17. Be4 {[%emt 0:04:48]} b6 {[%emt 0:05:30]} 18. Bxf6 {[%emt 0:03:25]} Bxf6 {[%emt 0:00:14]} 19. Rxf6 {[%emt 0:00:05]} Kg7 {[%emt 0:00:24]} 20. Rff1 {[%emt 0:04:44]} Rfd8 {[%emt 0:01:24]} 21. a3 {[%emt 0:02:43]} a5 {[%emt 0:02:23]} 22. Kf2 {[%emt 0:01:18]} h6 {[%emt 0:02:08]} 23. Rxd8 {[%emt 0:01:17]} Rxd8 {[%emt 0:00:10]} 24. Ke3 {[%emt 0:00:06]} Rd7 {[%emt 0:02:59]} 25. Bd3 {[%emt 0:01:53]} Rc7 {[%emt 0:01:16]} 26. Rf4 {[%emt 0:00:35]} Rc5 {[%emt 0:01:01]} 27. a4 {[%emt 0:03:12]} Bd7 {[%emt 0:06:49]} 28. b3 {[%emt 0:01:21]} Be6 {[%emt 0:02:05]} 29. Rd4 {[%emt 0:01:42]} Rc6 {[%emt 0:06:18]} 30. Be4 {[%emt 0:01:07]} Rc5 {[%emt 0:02:36]} 31. c4 {[%emt 0:03:29]} Rc8 {[%emt 0:00:51]} 32. Rd6 {[%emt 0:01:57]} Rb8 {[%emt 0:00:15]} 33. Kd4 {[%emt 0:02:47]} Kf6 {[%emt 0:01:15]} 34. Bd5 {[%emt 0:00:36]} Ke7 {[%emt 0:00:58]} 35. Rc6 {[%emt 0:00:04]} Kd7 {[%emt 0:01:10]} 36. Ke5 {[%emt 0:00:20]} Bg4 {[%emt 0:01:16]} 37. Rf6 {[%emt 0:01:02]} Re8+ {[%emt 0:01:46]} 38. Kd4 {[%emt 0:00:28]} Be6 {[%emt 0:00:42]} 39. Rxh6 {[%emt 0:02:42]} Rg8 {[%emt 0:00:48]} 40. Rh5 {[%emt 0:04:48]} Kd6 {[%emt 0:01:03]} 41. Bf3 {[%emt 0:00:24]} Rc8 {[%emt 0:01:20]} 42. Rb5 {[%emt 0:00:40]} Rb8 {[%emt 0:02:33]} 43. Rxb6+ {[%emt 0:02:03]} Rxb6 {[%emt 0:00:21]} 44. c5+ {[%emt 0:00:04]} Kc7 {[%emt 0:00:06]} 45. cxb6+ {[%emt 0:00:05]} Kxb6 {[%emt 0:00:03]} 46. Bd5 {[%emt 0:00:08]} Bh3 {[%emt 0:00:33]} 47. Bxf7 {[%emt 0:00:07]} Kc6 {[%emt 0:00:06]} 48. Ke5 {[%emt 0:01:44]} Kd7 {[%emt 0:00:25]} 49. Bg6 {[%emt 0:00:43]} Ke7 {[%emt 0:00:11]} 50. Bf5 {[%emt 0:00:06]} Bf1 {[%emt 0:00:10]} 51. Be6 {[%emt 0:01:00]} Bd3 {[%emt 0:00:11]} 52. g4 {[%emt 0:00:20]} Kf8 {[%emt 0:00:29]} 53. Kf6 {[%emt 0:00:04]} Bh7 {[%emt 0:00:24]} 54. g5 {[%emt 0:00:10]} Bg8 {[%emt 0:00:45]} 55. Bxg8 {[%emt 0:00:22]} Kxg8 {[%emt 0:00:02]} 56. g6 {[%emt 0:00:12]} Kf8 {[%emt 0:00:25]} 57. h4 {[%emt 0:00:16]} Kg8 {[%emt 0:00:10]} 58. g7 {[%emt 0:00:14]} Kh7 {[%emt 0:00:38]} 59. Kf7 {[%emt 0:00:05]} 1-0

[Event "1000GM Winter IM Norm-2 2024"]
[Site "Sunnyvale/"]
[Date "2024.01.05"]
[Round "6.2"]
[White "Yao, Hanchi"]
[Black "Mede, Istvan"]
[Result "0-1"]
[ECO "E73"]
[WhiteElo "1998"]
[BlackElo "2187"]
[Annotator "RC"]
[PlyCount "68"]
[EventDate "2023.12.14"]
[EventType "schev"]
[EventCountry "USA"]
[SourceTitle "playchess.com"]
[Source "ChessBase"]
[SourceQuality "1"]
[TimeControl "5400+30"]

1. d4 {[%emt 0:00:05]} Nf6 {[%emt 0:05:48]} 2. c4 {[%emt 0:00:03]} g6 {[%emt 0:00:02]} 3. Nc3 {[%emt 0:00:05]} Bg7 {[%emt 0:00:03]} 4. e4 {[%emt 0:00:06]} d6 {[%emt 0:00:01]} 5. Be2 {[%emt 0:00:08]} O-O {[%emt 0:00:06]} 6. Be3 {[%emt 0:00:04]} Na6 {[%emt 0:03:04]} 7. h4 {[%emt 0:06:47]} e5 {[%emt 0:01:14]} 8. d5 {[%emt 0:00:04]} h5 {[%emt 0:00:06]} 9. f3 {[%emt 0:01:33]} c6 {[%emt 0:00:57]} 10. Nh3 {[%emt 0:02:23]} cxd5 {[%emt 0:02:11]} 11. cxd5 {[%emt 0:00:10]} Bd7 {[%emt 0:01:09]} 12. Nf2 {[%emt 0:01:24]} Nc7 {[%emt 0:03:04]} 13. a4 {[%emt 0:00:54]} Qe8 {[%emt 0:02:38]} 14. Qb3 {[%emt 0:02:42]} Qb8 {[%emt 0:10:53]} 15. O-O {[%emt 0:05:29]} Nfe8 {[%emt 0:05:30]} 16. Bb5 {[%emt 0:07:32]} Nxb5 {[%emt 0:02:51]} 17. axb5 {[%emt 0:00:17]} Qd8 {[%emt 0:05:24]} 18. g3 {[%emt 0:03:33]} f5 {[%emt 0:00:39]} 19. Nd3 {[%emt 0:06:10]} f4 {[%emt 0:02:42]} 20. Bf2 {[%emt 0:05:48]} fxg3 {[%emt 0:02:55]} 21. Bxg3 {[%emt 0:00:08]} Bf6 {[%emt 0:00:06]} 22. Kf2 {[%emt 0:02:12]} Bxh4 {[%emt 0:01:06]} 23. Bxh4 {[%emt 0:00:09]} Qxh4+ {[%emt 0:00:13]} 24. Ke2 {[%emt 0:00:10]} Qg3 {[%emt 0:13:26]} 25. Rf2 {[%emt 0:07:15]} Ng7 {[%emt 0:05:30]} 26. Re1 {[%emt 0:01:37]} g5 {[%emt 0:02:22]} 27. Qd1 {[%emt 0:02:05]} g4 {[%emt 0:02:37]} 28. Rg1 {[%emt 0:00:17]} Qh4 {[%emt 0:00:09]} 29. Kd2 {[%emt 0:06:36]} g3 {[%emt 0:03:49]} 30. Rfg2 {[%emt 0:00:10]} Qg5+ {[%emt 0:00:08]} 31. Kc2 {[%emt 0:00:04]} h4 {[%emt 0:00:11]} 32. Ne1 {[%emt 0:00:22]} Nh5 {[%emt 0:01:08]} 33. Ne2 {[%emt 0:00:24]} Bxb5 {[%emt 0:02:10]} 34. Kb1 {[%emt 0:00:26]} Rac8 {[%emt 0:01:59]} 0-1

[Event "1000GM Winter IM Norm-2 2024"]
[Site "Sunnyvale/"]
[Date "2024.01.05"]
[Round "6.3"]
[White "Goktepe, Derin"]
[Black "Dominguez Aguilar, Guillermo"]
[Result "1/2-1/2"]
[ECO "A70"]
[WhiteElo "2187"]
[BlackElo "2319"]
[Annotator "RC"]
[PlyCount "41"]
[EventDate "2023.12.14"]
[EventType "schev"]
[EventCountry "USA"]
[SourceTitle "playchess.com"]
[Source "ChessBase"]
[SourceQuality "1"]
[TimeControl "5400+30"]

1. d4 {[%emt 0:00:04]} Nf6 {[%emt 0:00:34]} 2. c4 {[%emt 0:00:18]} c5 {[%emt 0:01:09]} 3. d5 {[%emt 0:00:42]} e6 {[%emt 0:00:14]} 4. Nc3 {[%emt 0:00:34]} exd5 {[%emt 0:00:15]} 5. cxd5 {[%emt 0:00:15]} d6 {[%emt 0:00:11]} 6. Nf3 {[%emt 0:01:00]} g6 {[%emt 0:01:53]} 7. h3 {[%emt 0:01:05]} Bg7 {[%emt 0:00:22]} 8. e4 {[%emt 0:01:00]} O-O {[%emt 0:01:42]} 9. Be3 {[%emt 0:01:03]} Re8 {[%emt 0:14:00]} 10. Nd2 {[%emt 0:02:22]} a6 {[%emt 0:01:27]} 11. a4 {[%emt 0:04:24]} Nxe4 {[%emt 0:02:09]} 12. Ncxe4 {[%emt 0:06:02]} f5 {[%emt 0:02:16]} 13. Be2 {[%emt 0:03:11]} fxe4 {[%emt 0:01:01]} 14. Nc4 {[%emt 0:03:11]} Qf6 {[%emt 0:15:21]} 15. Qd2 {[%emt 0:13:14]} Nd7 {[%emt 0:01:15]} 16. Bf4 {[%emt 0:06:27]} Ne5 {[%emt 0:20:13]} 17. Nxe5 {[%emt 0:06:49]} Rxe5 {[%emt 0:00:32]} 18. Bxe5 {[%emt 0:03:44]} Qxe5 {[%emt 0:00:07]} 19. O-O {[%emt 0:08:15]} Qe7 {[%emt 0:02:31]} 20. Rae1 {[%emt 0:04:30]} Bd4 {[%emt 0:00:43]} 21. Bd3 {[%emt 0:32:50]} 1/2-1/2